Cogmind - Beta 14 @@@ ROGUE MODE // 2024.12.11 @ 14:12:17 Player: Skullbearer Result: Destroyed by S-27 Virus with Autogun Performance ------------- Evolutions (3) 1500 Regions Visited (7) 1400 Robots Destroyed (34) 170 Value Destroyed (889) 889 Prototype IDs (0) 0 Alien Tech Used (0) 0 Bonus (500) 500 TOTAL SCORE: 4459 Bonus ------- Entered DSFs 500 Cogmind --------- Core Integrity 0/700 Matter 20/300 Energy 99/100 System Corruption 1% Temperature Cool (0) Movement Core (50) Location -7/DSF Parts ------- > --- POWER (2) -------- (None) > --- PROPULSION (4) --- (None) > --- UTILITY (4) ------ Advanced Terrain Scan Processor > --- WEAPON (3) ------- (None) > --- INVENTORY (5) ---- Small Storage Unit Seismic Detector ECM Suite Medium Laser Improved Grenade Launcher Peak State ------------ > --- POWER ------------ (None) > --- PROPULSION ------- Flight Unit Flight Unit > --- UTILITY ---------- Advanced Weight Redist. System Advanced Terrain Scan Processor Seismic Detector Improved Medium Armor Plating > --- WEAPON ----------- Autogun Improved Grenade Launcher > --- INVENTORY -------- Medium Storage Unit Large Matter Pod ECM Suite Corruption Screen Medium Laser [Rating: 19] Favorites ----------- Power Ion Engine Engine Ion Engine Power Core Light Nuclear Core Propulsion Compact Wheel Leg Aluminum Leg Wheel Compact Wheel Flight Unit Flight Unit Utility Seismic Detector Device Seismic Detector Storage Small Storage Unit Processor Advanced Terrain Scan Processor Protection Improved Light Armor Plating Weapon Light Assault Rifle Energy Gun Medium Laser Ballistic Gun Light Assault Rifle Ballistic Cannon Light Cannon Launcher Rocket Launcher Special Weapon Mining Laser Build | -11 -10 -10 -9 -9 -8 -7 -7 ------- Run | Yrd Mat Min Mat Min Mat Fac DSF Slots Evolved 6 | . . . 2 . 2 2 . Power 1 | . . . . . 1 . . Propulsion 2 | . . . 1 . . 1 . Utility 2 | . . . 1 . 1 . . Weapon 1 | . . . . . . 1 . Parts Attached 54 | 6 7 8 17 3 8 . 5 Power 3 | 1 . . 2 . . . . Engine 2 | 1 . . 1 . . . . Core 1 | . . . 1 . . . . Reactor . | . . . . . . . . Propulsion 14 | 2 1 2 8 . . . 1 Treads . | . . . . . . . . Leg 2 | . . . 2 . . . . Wheel 5 | 2 1 2 . . . . . Hover . | . . . . . . . . Flight 7 | . . . 6 . . . 1 Utility 23 | 1 5 4 5 1 5 . 2 Device 13 | . 5 4 1 1 2 . . Storage 5 | 1 . . 2 . 1 . 1 Processor 1 | . . . . . 1 . . Hackware . | . . . . . . . . Protection 4 | . . . 2 . 1 . 1 Artifact . | . . . . . . . . Weapon 14 | 2 1 2 2 2 3 . 2 Energy Gun 2 | . . . . 1 1 . . Energy Cannon . | . . . . . . . . Ballistic Gun 7 | 2 . 1 2 . 1 . 1 Ballistic Cannon 1 | . 1 . . . . . . Launcher 3 | . . 1 . . 1 . 1 Special Weapon 1 | . . . . 1 . . . Impact Weapon . | . . . . . . . . Slashing Weapon . | . . . . . . . . Piercing Weapon . | . . . . . . . . Special Melee Weapon . | . . . . . . . . Unidentified Prototypes . | . . . . . . . . Parts Lost 21 | . . 2 10 4 . . 5 Power 2 | . . . 1 1 . . . Propulsion 10 | . . 2 5 1 . . 2 Utility 3 | . . . 1 . . . 2 Weapon 6 | . . . 3 2 . . 1 Highest Loss Streak 5 | . . 2 5 4 . . 4 To Critical Strikes . | . . . . . . . . Average Slot Usage (%) 81 | . 99 93 81 44 71 . 24 Engine 4 | . 14 14 . . . . . Core 3 | . . . 8 . . . . Wheel 14 | . 28 22 17 . . . . Flight 6 | . . . 2 22 18 . 3 Device 15 | . 13 14 8 18 26 . 4 Storage 12 | . 14 14 21 . . . 3 Processor 2 | . . . . . 9 . 7 Energy Gun 2 | . . . . 3 8 . . Ballistic Gun 14 | . 16 14 18 . 8 . 1 Ballistic Cannon 1 | . 10 2 . . . . . Launcher 2 | . . 11 1 . . . 1 Peak Build Rating 19 | 6 7 9 18 13 19 12 18 Average Rating 11 | 4 6 8 13 7 14 12 9 On Entrance 8 | . 6 7 9 12 7 12 12 Naked Turns . | . . . . . . . . Heaviest Build 95 | 13 16 16 95 4 8 6 9 Greatest Support 32 | 26 26 32 32 8 8 8 13 Greatest Overweight (x) 28 | . . . 28 . . . 2 Average Overweight (x) . | . . . 2 . . . . Largest Inventory Capacity 25 | 8 8 8 25 25 8 8 10 Average Capacity 12 | 6 8 8 22 9 5 8 6 Most Carried 20 | 4 8 8 20 14 8 8 9 Average Carried 10 | 2 7 7 17 6 5 8 6 Final Capacity 25 | 8 8 8 25 5 8 8 5 Final Carried 15 | 4 8 8 15 5 8 8 5 Class Distribution -------------------- 97% | Mutant Dominant Class ---------------- Mutant | -10/Materials Mutant | -10/Mines Mutant | -9/Materials Mutant | -9/Mines Mutant | -8/Materials Mutant | -7/Factory Mutant | -7/DSF Resources | -11 -10 -10 -9 -9 -8 -7 -7 ----------- Run | Yrd Mat Min Mat Min Mat Fac DSF Matter Collected 1137 | 223 160 186 445 102 . . 21 Remotely . | . . . . . . . . Salvage Created 922 | . 156 106 513 . 68 . 79 Parts 67 | . 15 5 42 . 3 . 2 Haulers Intercepted . | . . . . . . . . Recyclers Shooed 2 | . 1 . 1 . . . . Parts Field Recycled . | . . . . . . . . Retrieved Matter . | . . . . . . . . Parts Self-Destructed . | . . . . . . . . Prevented . | . . . . . . . . Kills | -11 -10 -10 -9 -9 -8 -7 -7 ------- Run | Yrd Mat Min Mat Min Mat Fac DSF Combat Hostiles Destroyed 32 | . 9 4 17 . 2 . . Guns 23 | . 4 3 16 . . . . Cannons 4 | . 3 1 . . . . . AOE 5 | . 2 . 1 . 2 . . Classes Destroyed 5 | . 3 . 2 . . . . Worker 1 | . 1 . . . . . . Mechanic 1 | . . . 1 . . . . Swarmer 15 | . 6 2 7 . . . . Grunt 15 | . 3 2 8 . 2 . . Sentry 2 | . . . 2 . . . . Best Kill Streak 5 | . 4 2 5 . 2 . . Combat Bots Only 5 | . 3 2 5 . 2 . . Max Kills in Single Turn 3 | . 3 1 1 . 1 . . Gunslinging . | . . . . . . . . Exploded 2 | . 2 . 1 . 1 . . Melee . | . . . . . . . . Uniques/NPCs Destroyed . | . . . . . . . . Combat | -11 -10 -10 -9 -9 -8 -7 -7 -------- Run | Yrd Mat Min Mat Min Mat Fac DSF Hostile Shots Fired 291 | . 43 29 127 16 10 . 66 Missed 85 | . 13 8 33 4 6 . 21 Damage Taken 3105 | . 316 240 1100 141 58 . 1250 Core 1224 | . 120 68 279 46 . . 711 Absorbed by Shields 22 | . . . . . . . 22 Core Remaining (%) 60 | 100 . 24 . 18 100 . . Volleys Fired 115 | . 18 14 66 1 5 . 11 Largest 2 | . 2 2 2 2 2 . 2 Hottest 120 | . 55 55 53 120 59 . 59 Shots Fired 182 | . 36 28 90 2 8 . 18 Gun 133 | . 18 14 84 1 5 . 11 Cannon 32 | . 18 14 . . . . . Launcher 16 | . . . 6 . 3 . 7 Special 1 | . . . . 1 . . . Kinetic 163 | . 36 28 84 1 3 . 11 Thermal 3 | . . . . 1 2 . . Explosive 16 | . . . 6 . 3 . 7 Electromagnetic . | . . . . . . . . Robot Hit Streak 7 | . 5 3 5 5 2 . 7 Robot Miss Streak 6 | . 3 6 3 . 2 . 2 Penetration Max . | . . . . . . . . Secondary Targets . | . . . . . . . . Shots Hit Robots 93 | . 18 10 49 2 2 . 12 Core Hits 62 | . 12 6 34 . 3 . 7 Critical Kills . | . . . . . . . . Critical Parts Destroyed . | . . . . . . . . Critical Strikes . | . . . . . . . . Melee Attacks . | . . . . . . . . Impact . | . . . . . . . . Slashing . | . . . . . . . . Piercing . | . . . . . . . . Sneak Attacks . | . . . . . . . . Combat Hostiles . | . . . . . . . . Follow-up Attacks . | . . . . . . . . Damage Inflicted 1958 | . 624 136 716 32 162 . 288 Guns 928 | . 150 85 579 8 18 . 88 Cannons 200 | . 149 51 . . . . . Explosions 805 | . 325 . 136 . 144 . 200 Melee . | . . . . . . . . Ramming 1 | . . . 1 . . . . Kinetic 1128 | . 299 136 579 8 18 . 88 Thermal 24 | . . . . 24 . . . Explosive 805 | . 325 . 136 . 144 . 200 Electromagnetic . | . . . . . . . . Impact . | . . . . . . . . Slashing . | . . . . . . . . Piercing . | . . . . . . . . Highest Corruption 1 | . . . . . . . 1 Average Corruption 1 | . . . . . . . 1 Corruption Purged . | . . . . . . . . Corruption Blocked . | . . . . . . . . Overload Shots . | . . . . . . . . Overflow Damage 42 | . 42 . . . . . . Projectiles . | . . . . . . . . Explosions 42 | . 42 . . . . . . Melee . | . . . . . . . . Knockbacks 2 | . 2 . . . . . . Impact . | . . . . . . . . Kinetic 2 | . 2 . . . . . . Secondary . | . . . . . . . . Self-Inflicted Damage 182 | . 61 . 75 . . . 46 Shots 5 | . 1 . 3 . . . 1 Rammed 1 | . . . 1 . . . . Targets Rammed 1 | . . . 1 . . . . Kicked . | . . . . . . . . Crushed . | . . . . . . . . Highest Temperature 82 | . 6 78 37 82 17 . . Average Temperature 22 | . 3 51 9 45 7 . . Received Heat Transfer 740 | . 36 114 402 81 27 . 80 Siege Activations . | . . . . . . . . Robots Corrupted . | . . . . . . . . Combat Hostiles . | . . . . . . . . Parts Fried . | . . . . . . . . Impact Corruptions . | . . . . . . . . Robots Melted . | . . . . . . . . Combat Hostiles . | . . . . . . . . Parts Melted . | . . . . . . . . Heat Transferred 50 | . . . . 50 . . . Parts Sabotaged . | . . . . . . . . Parts Stolen . | . . . . . . . . Parts Stripped . | . . . . . . . . Power Chain Reactions . | . . . . . . . . Alert | -11 -10 -10 -9 -9 -8 -7 -7 ------- Run | Yrd Mat Min Mat Min Mat Fac DSF Peak Influence 265 | . 189 168 265 87 120 54 75 Initial 87 | . . 73 . 87 24 54 37 Average 55 | . 75 62 68 51 26 54 34 Maximum Alert Level 1 | . . . 1 . . . . Low Security (%) 94 | 100 100 100 84 100 100 100 100 Level 1 5 | . . . 15 . . . . Level 2 . | . . . . . . . . Level 3 . | . . . . . . . . Level 4 . | . . . . . . . . Level 5 . | . . . . . . . . High Security . | . . . . . . . . Max Security . | . . . . . . . . Squads Dispatched 5 | . 1 . 2 . 1 . 1 Investigation 1 | . . . 1 . . . . Extermination . | . . . . . . . . Reinforcement 4 | . 1 . 1 . 1 . 1 Assault . | . . . . . . . . Garrison . | . . . . . . . . Intercept . | . . . . . . . . Searches Triggered . | . . . . . . . . Construction Impeded . | . . . . . . . . Haulers Reinforced . | . . . . . . . . Active Scanning Responses . | . . . . . . . . Cargo Convoy Interrupts . | . . . . . . . . Stealth | -11 -10 -10 -9 -9 -8 -7 -7 --------- Run | Yrd Mat Min Mat Min Mat Fac DSF Distress Signals 5 | . . . 3 . 2 . . Communications Jammed . | . . . . . . . . Distress Signals . | . . . . . . . . Times Spotted 66 | . 13 4 24 3 12 . 10 Peak Tracking Total 8 | . 4 2 5 3 8 . 7 Tactical Retreats 9 | . 1 . 1 1 4 . 2 Traps | -11 -10 -10 -9 -9 -8 -7 -7 ------- Run | Yrd Mat Min Mat Min Mat Fac DSF Traps Triggered 2 | . . . 1 . . . 1 Indirectly . | . . . . . . . . Trap Hack Attempts . | . . . . . . . . Triggered . | . . . . . . . . Disarmed . | . . . . . . . . Reprogrammed . | . . . . . . . . Reused . | . . . . . . . . Traps Extracted . | . . . . . . . . Installed . | . . . . . . . . Triggered . | . . . . . . . . Machines | -11 -10 -10 -9 -9 -8 -7 -7 ---------- Run | Yrd Mat Min Mat Min Mat Fac DSF Machines Disabled 6 | . 1 1 2 . 2 . . Max in Single Turn 1 | . 1 1 1 . 1 . . Machines Repaired . | . . . . . . . . Machines Dismantled . | . . . . . . . . Machines Sabotaged . | . . . . . . . . Overloaded Fab Kills . | . . . . . . . . Hacking | -11 -10 -10 -9 -9 -8 -7 -7 --------- Run | Yrd Mat Min Mat Min Mat Fac DSF Machines Accessed 8 | . 4 . 1 . 2 1 . Terminals 8 | . 4 . 1 . 2 1 . Fabricators . | . . . . . . . . Repair Stations . | . . . . . . . . Recycling Units . | . . . . . . . . Scanalyzers . | . . . . . . . . Garrison Access . | . . . . . . . . Total Hacks 16 | . 7 . 2 . 5 2 . Successful 6 | . 1 . 2 . 2 1 . Failed 10 | . 6 . . . 3 1 . Catastrophic 4 | . 3 . . . 1 . . Database Lockouts . | . . . . . . . . Manual . | . . . . . . . . Terminals 16 | . 7 . 2 . 5 2 . Fabricators . | . . . . . . . . Repair Stations . | . . . . . . . . Recycling Units . | . . . . . . . . Scanalyzers . | . . . . . . . . Garrison Access . | . . . . . . . . Terminal Hacks 6 | . 1 . 2 . 2 1 . Record 3 | . . . 1 . 2 . . Open DSF 1 | . . . . . . 1 . Repair Station Index 1 | . . . 1 . . . . Zone Layout 1 | . 1 . . . . . . Fabricator Hacks . | . . . . . . . . Repair Station Hacks . | . . . . . . . . Recycling Unit Hacks . | . . . . . . . . Scanalyzer . | . . . . . . . . Garrison Access Hacks . | . . . . . . . . Unauthorized Hacks . | . . . . . . . . Terminals . | . . . . . . . . Fabricators . | . . . . . . . . Repair Stations . | . . . . . . . . Recycling Units . | . . . . . . . . Scanalyzers . | . . . . . . . . Garrison Access . | . . . . . . . . Data Cores Recovered . | . . . . . . . . Used . | . . . . . . . . Hacking Detections 5 | . 3 . . . 2 . . Full Trace Events . | . . . . . . . . Feedback Events . | . . . . . . . . Feedback Blocked . | . . . . . . . . Robot Schematics Acquired . | . . . . . . . . Robots Built . | . . . . . . . . Authchips . | . . . . . . . . Time . | . . . . . . . . Total Robot Build Rating . | . . . . . . . . Part Schematics Acquired . | . . . . . . . . Parts Built . | . . . . . . . . Authchips . | . . . . . . . . Time . | . . . . . . . . Total Part Build Rating . | . . . . . . . . Parts Repaired . | . . . . . . . . Time . | . . . . . . . . Parts Recycled . | . . . . . . . . Recycled Matter . | . . . . . . . . Retrieved Matter . | . . . . . . . . Retrieved Components . | . . . . . . . . Parts Scanalyzed . | . . . . . . . . Part Schematics Acquired . | . . . . . . . . Parts Damaged . | . . . . . . . . Bothacking | -11 -10 -10 -9 -9 -8 -7 -7 ------------ Run | Yrd Mat Min Mat Min Mat Fac DSF Used RIF Installer . | . . . . . . . . Robots Hacked . | . . . . . . . . Non-combat . | . . . . . . . . Combat . | . . . . . . . . Robot Hacks Applied . | . . . . . . . . Relay Couplers Released . | . . . . . . . . Fabnet Peak Effective % . | . . . . . . . . Robots Rewired . | . . . . . . . . Allies Hacked . | . . . . . . . . Hacks Repelled . | . . . . . . . . Allies | -11 -10 -10 -9 -9 -8 -7 -7 -------- Run | Yrd Mat Min Mat Min Mat Fac DSF Total Allies . | . . . . . . . . Largest Group . | . . . . . . . . Highest-Rated Group . | . . . . . . . . Highest-Rated Ally . | . . . . . . . . Total Orders . | . . . . . . . . Ally Attacks . | . . . . . . . . Total Damage . | . . . . . . . . Kills . | . . . . . . . . Allies Corrupted . | . . . . . . . . Allies Melted . | . . . . . . . . Intel | -11 -10 -10 -9 -9 -8 -7 -7 ------- Run | Yrd Mat Min Mat Min Mat Fac DSF Robot Analysis Total . | . . . . . . . . Derelict Logs Recovered 3 | . . 3 . . . . . Drone Launches . | . . . . . . . . Drone Recoveries . | . . . . . . . . Exploration | -11 -10 -10 -9 -9 -8 -7 -7 ------------- Run | Yrd Mat Min Mat Min Mat Fac DSF Turns Passed 5143 | 58 666 948 1950 30 1349 5 137 Spaces Moved 2475 | 51 653 718 445 37 380 14 177 Core 107 | 1 . . 13 . . . 93 Treads . | . . . . . . . . Legs . | . . . . . . . . Wheels 1832 | 50 653 718 411 . . . . Hover . | . . . . . . . . Flight 536 | . . . 21 37 380 14 84 Fastest Speed 37 | 50 80 100 100 37 37 37 37 Average Speed 94 | 88 82 100 176 37 37 37 47 Slowest Speed 1450 | 90 90 100 1450 37 37 37 150 Overloaded Moves . | . . . . . . . . Propulsion Burnouts . | . . . . . . . . Robots Hopped 3 | . . . . 1 2 . . Cave-ins Triggered 1 | . . . . . . . 1 Exploration Rate (%) 39 | 3 68 95 22 9 21 1 93 Regions Visited 7 Branch Regions 2 Pre-discovered Areas 2 | . . 2 . . . . . Known Exits Taken 1 | . . . . . . 1 . Unknown Exits Taken 6 | 1 1 1 1 1 1 . . Scrap Searched 3 | . . 1 . 2 . . . Spaces Dug . | . . . . . . . . Terrain Destroyed 156 | . 19 . 90 . 19 . 28 Melee . | . . . . . . . . Projectile . | . . . . . . . . AOE 156 | . 19 . 90 . 19 . 28 Terrain Rammed . | . . . . . . . . Walls Destroyed . | . . . . . . . . Machines Disabled . | . . . . . . . . Actions | -11 -10 -10 -9 -9 -8 -7 -7 --------- Run | Yrd Mat Min Mat Min Mat Fac DSF Total 5097 | 60 745 917 1523 47 1577 13 215 Wait 2392 | . 53 174 979 5 1178 . 3 Move 2462 | 50 652 717 444 34 375 13 177 Hop 3 | . . . . 1 2 . . Pick Up 32 | 4 9 2 12 1 4 . . Fast Attach 22 | 6 2 2 7 2 3 . . Attach 12 | . . 1 6 1 1 . 3 Detach 5 | . . . 1 . 2 . 2 Swap 20 | . 5 5 4 . 4 . 2 Drop 19 | . 6 2 3 2 3 . 3 Fire 115 | . 18 14 66 1 5 . 11 Melee . | . . . . . . . . Ram 1 | . . . 1 . . . . Kick . | . . . . . . . . Crush . | . . . . . . . . Escape Stasis 14 | . . . . . . . 14 Rewire . | . . . . . . . . Trap . | . . . . . . . . Miscellaneous . | . . . . . . . . Route ------- -11/Scrapyard -10/Materials (discovered 3 exits: *Mat x2 / [*Min]) -10/Mines (discovered 2 exits: *Mat x2) -9/Materials -9/Mines -8/Materials -7/Factory -7/DSF (discovered 1 exit: [*Fac]) History --------- Turn | Location | Event 36 | -11/Scrapyard | Discovered new exit (range 15) 59 | -11/Scrapyard | Entered Materials 316 | -10/Materials | Build established: Mutant 515 | -10/Materials | Discovered new exit (range 5) 574 | -10/Materials | Discovered new exit (range 17) 574 | -10/Materials | Discovered new exit (range 18) 725 | -10/Materials | Entered Mines 730 | -10/Mines | Core integrity fell below 50% 848 | -10/Mines | Discovered new exit (range 15) 860 | -10/Mines | Received a Rocket Launcher from a helpful Derelict 1258 | -10/Mines | Learned Materials stockpile data 1541 | -10/Mines | Discovered new exit (range 9) 1673 | -10/Mines | Entered Materials 1673 | -9/Materials | Evolved 2 slots: Propulsion x1, Utility x1 3358 | -9/Materials | Core integrity fell below 50% 3391 | -9/Materials | Lost 5 parts (3n1u1w) 3591 | -9/Materials | Discovered new exit (range 7) 3623 | -9/Materials | Entered Mines 3632 | -9/Mines | Core integrity fell below 20% 3649 | -9/Mines | Discovered new exit (range 8) 3653 | -9/Mines | Entered Materials 3653 | -8/Materials | Evolved 2 slots: Power x1, Utility x1 3658 | -8/Materials | Lost 4 parts (1p1n2w) 5000 | -8/Materials | Discovered new exit (range 4) 5002 | -8/Materials | Entered Factory 5002 | -7/Factory | Evolved 2 slots: Propulsion x1, Weapon x1 5006 | -7/Factory | Identified exit to DSF 5007 | -7/Factory | Entered DSF 5014 | -7/DSF | Discovered new exit (range 16) 5025 | -7/DSF | Additional patrols routed to DSF 5068 | -7/DSF | Crushed by falling debris 5104 | -7/DSF | Core integrity fell below 50% 5122 | -7/DSF | Core integrity fell below 20% 5130 | -7/DSF | Lost 4 parts (1n2u1w) 5144 | -7/DSF | Destroyed by S-27 Virus with Autogun Last Messages --------------- Field strength at 90. Field strength at 85. Field strength at 80. Field strength at 75. Field strength at 70. Field strength at 65. Field strength at 60. Field strength at 55. Field strength at 50. Field strength at 41. Field strength at 36. Field strength at 27. Critical hit (Burn: +27). Field strength at 18. Field strength at 8. Stasis field depleted. Flight Unit destroyed. C-30 ARC bursts open, deploying its payload. S-27 Virus unfolds itself. Knocked back. Map ----- +----------------------------------------------------+ | | | | | | | | | | | | | | | | | | | | | | | | | | | | | ???????????????????????????????????????????? | | ???????????????????????????????????????????? | | ???????????????????????????????????????????? | | ????????????????????????????????##?????????? | | ???""??????????????????????????#""?????????? | | ???#"#?????????????????????????#"#?????????? | | ####"##???????#########???????##"####??????? | | #"""""######### !!!!!#########"""""#??????? | | #"""""## # # !!!!!# # ##"""""#??????? | | #"" ""##"????? | | """ """""????? | | #"" ##[[#[[[### ### @#//## ""###????? | | ### ###[[#[[[#?# ### #???## ###??????? | | ?## ##########!! #####??### ##???????? | | ?# ]]#??????#!! #??????# #???????? | | ?# ]]#??????#!! #??????# #???????? | | ?## ###??????### ###??????### ##???????? | | ?# ]]#??????#[[ !!#??????#// #???????? | | ?# ]]#??????#[[ !!#??????#// #???????? | | ?# ]]#???????[[ !!???????#// #???????? | | ### ############ ############ ###??????? | | # ## #!!!### ###!!!# ## !!##?????? | | # ## #!!!## ##!!!# ## !!"#?????? | | #!! #??????? | | #!! H #??????? | | #!! = #??????? | | # ## #!!!##%! # !!!# ## #??????? | | # ## #!!!## !!# ## #??????? | | ################ ######### ###??????? | | ??????????????# #????#!! !#???????? | | ????????????###! ##????#!! !#???????? | | ???????????## "! ##?????#!! !#???????? | | ???????????# # # #??????### ##???????? | | ???????????# #??????#!! !#???????? | | ???????????#%##! #??????#!! !#???????? | | ???????????# #! % ########## ##???????? | +----------------------------------------------------+ Best States ------------- Heat Dissipation 34 Energy Generation 14 Energy Capacity 250 Matter Stores 399 Matter Capacity 450 Sight Range 16 Terrain Scan Density 210 ECM Strength 1 Additional Mass Support 9 Armor Coverage 225 Evasion (%) 62 Item Schematics ----------------- None Robot Schematics ------------------ None Fabricated ------------ Nothing Alien Tech Used ----------------- None Achievements -------------- Unlikely Earthworm Challenges ------------ None Game ------ Seed ChainFrostBooster Manual? 0 Play Time 00:35:45 Cumulative 15.8 hours Start 2024.12.11 @ 11:51:58 End 2024.12.11 @ 14:12:17 Sessions 3 Manual Loads 0 Difficulty Rogue Special Mode None Game No. 31 Rogue 31 Adventurer 0 Explorer 0 Win Type - Total 0 Types 0/0/0/0/0/0/0/0/0 Lore% 12 Gallery% 19 Achievement% 16 Wizard Run 0 Options --------- Layout 1 ASCII 0 Keyboard 0 Movement Arrows Keybinds 0 Fullscreen 1 Font 24/Smallcaps Map View 50x35 Zoom Use 0% Tactical HUD 0 Map Filters NONE Filters NONE Steam 1 RUN: 82852241-e660-4a89-a3d9-8d5bc681c6ec